[Event "4NCL Div 1 2024-25"]
[Site "England"]
[Date "2025.01.26"]
[Round "4.32"]
[White "Ledger, Stephen C"]
[Black "McCarthy, Kevin C"]
[Result "1/2-1/2"]
[Annotator "TA"]
[ECO "A01"]
[WhiteElo "2013"]
[BlackElo "1954"]
[PlyCount "38"]
[EventDate "2024.11.23"]
[EventType "team-tourn"]
[EventCountry "ENG"]
[SourceTitle "playchess.com"]
[Source "ChessBase"]
[SourceQuality "1"]
[TimeControl "40/6000+30:3000+30"]

{[%evp 9,38,4,19,-25,-41,-41,-25,-105,-117,-112,-101,-113,-96,-95,-92,-96,-95,-94,-87,-72,-81,-97,-100,-97,-106,-86,-62,-89,-52,-48,-49]} 1. b3 {[%emt 0:13:58]} e5 {[%emt 0:10:05]} 2. Bb2 {[%emt 0:01:06]} Nc6 {[%emt 0:00:13]} 3. e3 {[%emt 0:00:46]} d5 {[%emt 0:00:06]} 4. Bb5 {[%emt 0:01:38]} Nge7 {[%emt 0:00:32][%cal Bg8e7,Be7c6,Bc6b4,Bb4d3][%mdl 32]} 5. Nf3 {[%emt 0:05:52]} f6 {[%emt 0:06:50]} 6. c4 {[%emt 0:04:51] A01: Nimzowitsch-Larsen Opening.} a6 {[%emt 0:08:45]} 7. Bxc6+ {[%emt 0:02:20]} Nxc6 {[%emt 0:00:26]} 8. cxd5 {[%emt 0:04:39]} (8. d4 $1 $11 {keeps the balance.}) 8... Qxd5 $17 {[%emt 0:00:20]} 9. Nc3 {[%emt 0:05:21]} Qd3 {[%emt 0:01:39]} 10. Qe2 $146 {[%emt 0:11:17]} (10. a3 Be6 11. b4 O-O-O 12. Qb1 e4 13. Qxd3 exd3 14. O-O Bg4 15. Ne4 Bd6 16. h3 {1-0 Klukin,K (2390)-Ferey,A (2181) Titled Tuesday intern op 30th May Late blitz 2023 (1)}) 10... Nb4 {[%emt 0:06:55]} 11. O-O {[%emt 0:04:25]} Bg4 {[%emt 0:01:50] ...Qxe2 would now be deadly.} 12. h3 {[%emt 0:05:15]} Qxe2 {[%emt 0:02:21]} 13. Nxe2 {[%emt 0:00:13]} Bxf3 {[%emt 0:00:06]} 14. gxf3 {[%emt 0:00:21]} Nd3 {[%emt 0:00:45]} 15. Bc3 {[%emt 0:01:23]} Ba3 {[%emt 0:10:21]} 16. Kg2 {[%emt 0:06:37]} O-O-O {[%emt 0:03:59]} 17. Rab1 {[%emt 0:01:49]} Bb4 {[%emt 0:01:54]} 18. Rfd1 {[%emt 0:04:42]} Rd7 {[%emt 0:05:44]} 19. Bxb4 {[%emt 0:05:30]} Nxb4 {[%emt 0:00:12] Weighted Error Value: White=0.16 (very precise) /Black=0.07 (flawless)   Mistake:       	White=1     	---        Inaccurate:     	White=1     	Black=1      OK:         	White=4     	Black=5      Best:        	---       	Black=1} 1/2-1/2

[Event "4NCL Div 1 2024-25"]
[Site "England"]
[Date "2025.01.26"]
[Round "4.33"]
[White "Larkin, Vladyslav"]
[Black "Waldhausen Gordon, Frederick"]
[Result "1/2-1/2"]
[Annotator "TA"]
[ECO "A45"]
[WhiteElo "2455"]
[BlackElo "2361"]
[PlyCount "134"]
[EventDate "2024.11.23"]
[EventType "team-tourn"]
[EventCountry "ENG"]
[SourceTitle "playchess.com"]
[Source "ChessBase"]
[SourceQuality "1"]
[TimeControl "40/6000+30:3000+30"]

{[%evp 20,134,24,14,31,29,25,21,19,-21,-21,-23,-30,-37,-21,-32,-10,-47,-10,-15,6,-15,0,0,12,0,25,28,26,13,16,2,27,0,6,0,34,-6,0,0,0,0,0,-32,-34,-43,-42,-63,-56,-58,-58,-65,-58,-60,-62,-89,-72,-72,-72,-81,-35,-64,-28,-81,-85,-95,-95,-116,-110,-110,-27,-25,-21,-14,-17,-113,-20,-41,-12,-26,0,0,83,82,98,80,1215,179,1145,1175,960,337,670,64,64,69,92,92,391,-67,492,481,481,475,425,0,0,0,0,0,0,0,0,0,0,0,0]} 1. d4 {[%emt 0:10:05]} Nf6 {[%emt 0:10:03]} 2. Bg5 {[%emt 0:02:07]} g6 {[%emt 0:01:25]} 3. Bxf6 {[%emt 0:22:28]} exf6 {[%emt 0:00:38]} 4. e3 {[%emt 0:00:06]} Bg7 {[%emt 0:00:12]} 5. g3 {[%emt 0:00:28]} f5 {[%emt 0:00:59]} 6. Bg2 {[%emt 0:00:10]} d6 {[%emt 0:00:40]} 7. Ne2 {[%emt 0:00:19]} O-O {[%emt 0:00:20]} 8. O-O {[%emt 0:07:18]} Re8 {[%emt 0:01:14]} 9. c4 {[%emt 0:09:13]} Nd7 {[%emt 0:01:19][%cal Bb8d7,Bd7f6,Bf6e4][%mdl 32]} 10. Nbc3 {[%emt 0:00:22]} Nf6 {[%emt 0:02:09]} 11. Qc2 {[%emt 0:04:09]} h5 {[%emt 0:02:54][%cal Oh5h4] A45: Trompowsky Attack.} 12. Nd5 {[%emt 0:04:28]} Ne4 $146 {[%emt 0:02:37]} (12... Ng4 13. b4 c6 14. Ndf4 h4 15. b5 hxg3 16. hxg3 Qg5 17. Bh3 Bd7 18. Qd3 Re7 19. bxc6 Bxc6 {0-1 Deshpande,A (2219)-Abhishek,K (2380) Abu Dhabi op 23rd 2016 (5)}) 13. Nec3 {[%emt 0:07:33][%cal Rc3e4]} c6 {[%emt 0:00:46]} 14. Nxe4 {[%emt 0:00:53]} fxe4 {[%emt 0:00:08]} 15. Nc3 {[%emt 0:00:03]} Bf5 {[%emt 0:01:17]} 16. h3 {[%emt 0:10:11]} (16. Nxe4 $2 d5 17. cxd5 cxd5 $19) (16. Bxe4 $2 Rxe4 17. Nxe4 d5 $19) 16... Qd7 {[%emt 0:05:50]} 17. Kh2 {[%emt 0:00:05]} Re7 {[%emt 0:00:11]} 18. b4 {[%emt 0:01:30][%cal Of1c1]} a6 {[%emt 0:02:59]} 19. a4 {[%emt 0:00:50]} Rc8 {[%emt 0:01:21]} 20. Qb3 {[%emt 0:05:39]} (20. Nxe4 $2 d5 21. f3 (21. cxd5 $2 cxd5 22. Nc5 Bxc2 $19) 21... g5 $19 (21... dxe4 $2 22. fxe4 Be6 23. a5 $19)) 20... Qe6 {[%emt 0:03:07][%cal Ob7b5]} 21. Rab1 {[%emt 0:03:52]} Rd7 {[%emt 0:04:04]} 22. a5 {[%emt 0:02:57]} Bf6 {[%emt 0:06:30]} 23. Na4 {[%emt 0:02:16]} Bd8 {[%emt 0:00:25]} 24. Rfc1 {[%emt 0:00:13]} Qf6 {[%emt 0:06:34]} 25. Rc2 {[%emt 0:11:46]} g5 {[%emt 0:02:41]} 26. Rbc1 {[%emt 0:00:23]} Bg6 {[%emt 0:02:22]} 27. d5 {[%emt 0:01:09]} c5 {[%emt 0:04:10]} 28. Rb1 {[%emt 0:01:10]} h4 {[%emt 0:04:38]} 29. bxc5 {[%emt 0:00:13]} hxg3+ {[%emt 0:00:27]} 30. fxg3 {[%emt 0:00:03]} Bxa5 {[%emt 0:01:10]} 31. Nb6 {[%emt 0:04:01]} Bxb6 {[%emt 0:00:06]} (31... Rxc5 $2 32. Nxd7 Qd8 33. Nxc5 dxc5 34. Qxb7 $18) 32. cxb6 {[%emt 0:00:00][%cal Oh3h4]} Rc5 {[%emt 0:00:13]} 33. Rd2 {[%emt 0:00:11]} Qe5 {[%emt 0:00:49]} 34. Bf1 {[%emt 0:00:41]} f5 {[%emt 0:00:48]} 35. Qb2 {[%emt 0:00:28]} Qxb2 {[%emt 0:01:04]} 36. Rbxb2 {[%emt 0:00:03]} Kg7 {[%emt 0:00:39]} 37. h4 {[%emt 0:00:44]} Kf6 {[%emt 0:00:06]} 38. hxg5+ {[%emt 0:00:28]} Kxg5 {[%emt 0:00:05]} 39. Ra2 {[%emt 0:00:22][%cal Og3g4]} Rd8 {[%emt 0:01:00]} (39... Rc8 $17 40. Kg1 Rh7) 40. Kg1 $15 {[%emt 0:00:19]} Ra8 {[%emt 0:00:25]} 41. Ra3 {[%emt 0:51:11]} (41. Rh2 $11) 41... Bh5 $17 {[%emt 0:50:44]} 42. Rda2 {[%emt 0:00:00]} a5 {[%emt 0:00:00]} 43. Kf2 {[%emt 0:00:00]} Bf3 {[%emt 0:00:00]} 44. Ke1 {[%emt 0:00:00]} Kg4 {[%emt 0:00:00]} ({Better is} 44... Ra6 $1 $17 45. Rb3 a4) 45. Rh2 $1 $11 {[%emt 0:00:00]} Ra6 {[%emt 0:00:00]} (45... Kxg3 46. Rh3+ Kg4 47. Rh7 $16) 46. Rh7 {[%emt 0:00:00]} Rxb6 {[%emt 0:00:00]} (46... Kxg3 $2 47. Rxb7 Bg4 48. Rb8 $18) 47. Rg7+ {[%emt 0:00:00]} Kh5 {[%emt 0:00:00]} 48. Ra2 $1 {[%emt 0:00:00][%cal Ra2h2]} Rb1+ {[%emt 0:00:00]} 49. Kf2 {[%emt 0:00:00]} Bg4 {[%emt 0:00:00]} 50. Kg1 {[%emt 0:00:49]} Bh3 {[%emt 0:00:00]} (50... Rxc4 51. Rh2+) (50... Kh6 $1 $11 51. Rg8 Kh7 (51... Rxc4 52. Rh2+ Bh5 53. Rh8+ Kg6 54. R8xh5 $11)) 51. Rh7+ $1 $16 {[%emt 0:00:06]} Kg4 {[%emt 0:00:00]} 52. Rh4+ {[%emt 0:00:15]} Kxg3 $2 {[%emt 0:00:00][%mdl 8192]} (52... Kf3 $16 53. Rxh3 Kxe3 54. g4+ Kf4 55. gxf5 Kxf5) 53. Rxh3+ $18 {[%emt 0:00:06]} Kg4 {[%emt 0:00:00][%cal Ob1f1] [#] White must now prevent ...Rxf1+!.} 54. Kh2 $1 {[%emt 0:00:46][%cal Ra2g2]} f4 {[%emt 0:00:00]} 55. Rg2+ {[%emt 0:02:11]} Kf5 {[%emt 0:00:00]} 56. Rh8 $2 {[%emt 0:00:12]} fxe3 $14 {[%emt 0:00:00][%cal Of5e5]} (56... Rxf1 57. Rf8+ Ke5 58. Rg5#) 57. Rh5+ {[%emt 0:00:40]} Kf6 $1 {[%emt 0:00:00]} 58. Be2 {[%emt 0:01:38] Kg3 would now be deadly.} a4 $2 {[%emt 0:00:00][%mdl 8192]} (58... Rc8 $16 {was necessary.}) 59. Bg4 $2 {[%emt 0:02:17]} (59. Kg3 $1 $18 {[%cal Rg3f4]} Rc7 (59... a3 60. Kf4 $18) 60. Kf4) 59... a3 $2 {[%emt 0:00:00][%mdl 8192]} (59... Rxc4 $2 60. Rf5+ Ke7 61. Bh5 $18) (59... Rf1 $1 $15 {stays ahead.} 60. Be2 Rf5) 60. Rf5+ $1 $18 {[%emt 0:00:09]} Ke7 {[%emt 0:00:00][%cal Oc5c8] [#]} 61. Be2 $1 {[%emt 0:00:18]} Rb2 {[%emt 0:00:00] [#]} (61... a2 62. Rg7+ Ke8 63. Bh5+ Kd8 64. Rf8#) 62. Rg7+ $2 {[%emt 0:00:04]} ({White has to play} 62. Kh3 $1 $18 {White wants to mate with Rg7+.} Rxe2 63. Rxe2) 62... Ke8 $11 {[%emt 0:00:00] The position is equal.} 63. Rg8+ {[%emt 0:01:18]} Ke7 {[%emt 0:00:00]} 64. Rg7+ {[%emt 0:00:36]} Ke8 {[%emt 0:00:00]} 65. Rg8+ {[%emt 0:00:31]} Ke7 {[%emt 0:00:00]} 66. Rg7+ {[%emt 0:00:29]} Ke8 {[%emt 0:00:00]} 67. Rg8+ {[%emt 0:00:33]} Ke7 {[%emt 0:00:00] Weighted Error Value: White=0.37/Black=0.44  Loses game:     	---       	Black=3      Missed win:     	White=2     	---        Mistake:       	White=1     	Black=3      Inaccurate:     	White=6     	Black=7      OK:         	White=14    	Black=13     Best:        	White=6     	Black=10     Strong:       	White=5     	Black=1} 1/2-1/2

[Event "4NCL Div 1 2024-25"]
[Site "England"]
[Date "2025.01.26"]
[Round "4.34"]
[White "Olson, Hamish"]
[Black "Jogstad, Martin"]
[Result "1-0"]
[Annotator "TA"]
[ECO "A11"]
[WhiteElo "2374"]
[BlackElo "2379"]
[PlyCount "87"]
[EventDate "2024.11.23"]
[EventType "team-tourn"]
[EventCountry "ENG"]
[SourceTitle "playchess.com"]
[Source "ChessBase"]
[SourceQuality "1"]
[TimeControl "40/6000+30:3000+30"]

{[%evp 12,87,36,35,28,0,0,0,0,0,0,7,31,0,0,0,0,0,16,0,0,-45,-26,-41,-34,-29,-34,-37,-44,-27,-31,-31,-14,-65,-61,-74,-32,-41,-49,-42,-29,-72,-20,-22,-26,-22,-27,-39,-5,0,-8,-10,0,0,0,0,0,0,0,0,39,19,54,53,50,21,531,527,510,465,584,556,555,584,582,570,812,765]} 1. Nf3 {[%emt 0:15:27]} d5 {[%emt 0:10:08]} 2. g3 {[%emt 0:00:05]} Nf6 {[%emt 0:00:06]} 3. Bg2 {[%emt 0:00:06]} c6 {[%emt 0:00:15]} 4. O-O {[%emt 0:00:08]} h6 {[%emt 0:00:30]} 5. d3 {[%emt 0:00:32]} Bf5 {[%emt 0:01:10]} 6. c4 {[%emt 0:05:23]} e6 {[%emt 0:02:05]} 7. Qb3 {[%emt 0:00:34]} Qb6 {[%emt 0:00:27] A11: English Opening: 1...c6.} 8. Be3 {[%emt 0:00:09]} Qxb3 {[%emt 0:00:42]} 9. axb3 {[%emt 0:00:02]} a6 $1 {[%emt 0:00:44] The position is equal.} 10. Bd4 $1 {[%emt 0:00:10][%mdl 4] is more profitable than 10.Nc3 at the moment.} Nbd7 {[%emt 0:00:43]} 11. Bc3 {[%emt 0:00:15]} Bd6 {[%emt 0:01:57]} 12. b4 {[%emt 0:00:16][%cal Ob4b5]} O-O {[%emt 0:00:48]} 13. Nd4 $146 {[%emt 0:02:10][%cal Bf3d4,Bd4b3,Bb3a5][%mdl 32]} (13. Nbd2 e5 14. Nb3 Rfe8 15. Rfc1 Rab8 16. Na5 Bg6 17. Nh4 Bh7 18. Bh3 g5 19. Nf5 {0-1 Kobo,O (2554)-Santos Flores,A (2164) Titled Tuesday intern op 15th Nov Late blitz 2022 (9)}) 13... Bg6 {[%emt 0:00:18]} 14. Nb3 {[%emt 0:01:06]} e5 {[%emt 0:07:37]} 15. Na5 {[%emt 0:01:30]} Rab8 {[%emt 0:00:14]} 16. e4 {[%emt 0:03:00]} dxe4 {[%emt 0:10:06]} 17. dxe4 {[%emt 0:01:08]} Bxe4 {[%emt 0:02:21]} 18. Rd1 {[%emt 0:06:54]} Bxg2 {[%emt 0:01:34]} 19. Rxd6 {[%emt 0:01:33]} Bh3 {[%emt 0:00:26]} 20. Nd2 {[%emt 0:01:05] Prevents Ne4} Bf5 {[%emt 0:10:03]} 21. f3 {[%emt 0:05:16]} Rfc8 {[%emt 0:37:41]} 22. g4 {[%emt 0:08:57]} ({White should play} 22. c5 $11) 22... Be6 $15 {[%emt 0:03:37]} 23. h4 {[%emt 0:09:57]} Ne8 {[%emt 0:03:20][%cal Bf6e8,Be8c7,Bc7e6][%mdl 32]} 24. Rxd7 {[%emt 0:05:58]} Bxd7 {[%emt 0:00:11]} 25. Bxe5 {[%emt 0:00:16]} Nc7 {[%emt 0:01:15]} 26. c5 {[%emt 0:02:53] [#]} b6 {[%emt 0:00:52]} (26... b5 $1 $17 27. Ne4 Ra8) 27. Nac4 $11 {[%emt 0:02:05]} bxc5 {[%emt 0:00:09]} 28. bxc5 {[%emt 0:00:42]} f6 {[%emt 0:08:34]} 29. Bg3 {[%emt 0:00:58] [#]} Ne6 $1 {[%emt 0:04:09]} 30. Bxb8 {[%emt 0:03:42]} (30. Rxa6 $2 {perishes.} Ra8 (30... Nxc5 $2 31. Ra1 $19) 31. Rxa8 Rxa8 $19) 30... Rxb8 {[%emt 0:00:01]} 31. Ne4 {[%emt 0:01:27]} Rb3 {[%emt 0:01:57]} 32. Rd1 {[%emt 0:13:30]} Be8 {[%emt 0:01:44]} 33. Rd6 {[%emt 0:02:30]} Kf7 {[%emt 0:00:36]} 34. Kf2 {[%emt 0:04:34]} Ke7 {[%emt 0:00:01]} 35. Rd2 {[%emt 0:01:00]} Rb5 {[%emt 0:01:02]} 36. Ncd6 {[%emt 0:00:59]} Rb3 {[%emt 0:00:32]} 37. Nf5+ {[%emt 0:09:03] Excellent horsemanship.} Kf8 {[%emt 0:00:19]} 38. h5 {[%emt 0:00:53]} (38. Rd6 $5 Rxb2+ 39. Kg3 $15) 38... Nf4 $2 {[%emt 0:00:39][%mdl 8192] [#] This costs Black the game.} (38... a5 $11) 39. Rd8 $1 $18 {[%emt 0:01:39] and Ned6 would now be decisive. White is clearly winning.} Rxb2+ {[%emt 0:00:09]} 40. Ke1 {[%emt 0:02:01]} Rb1+ {[%emt 0:00:56]} 41. Kd2 {[%emt 0:50:32]} Rb2+ {[%emt 0:38:52]} 42. Kc3 {[%emt 0:00:00]} Ra2 {[%emt 0:02:55]} 43. Nfd6 {[%emt 0:00:00][%csl Gd6][%cal Rd8e8]} Ne2+ {[%emt 0:01:45]} 44. Kc4 {[%emt 0:00:00] Weighted Error Value: White=0.08 (flawless) /Black=0.39  Loses game:     	---       	Black=1      Mistake:       	White=1     	Black=1      Inaccurate:     	White=4     	Black=5      OK:         	White=19    	Black=10     Best:        	White=3     	Black=3      Strong:       	White=1     	Black=1} 1-0

[Event "4NCL Div 1 2024-25"]
[Site "England"]
[Date "2025.01.26"]
[Round "4.35"]
[White "Bottazzi, Ulysse"]
[Black "Gourlay, Iain"]
[Result "1/2-1/2"]
[Annotator "TA"]
[ECO "B11"]
[WhiteElo "2344"]
[BlackElo "2303"]
[PlyCount "65"]
[EventDate "2024.11.23"]
[EventType "team-tourn"]
[EventCountry "ENG"]
[SourceTitle "playchess.com"]
[Source "ChessBase"]
[SourceQuality "1"]
[TimeControl "40/6000+30:3000+30"]

{[%evp 10,65,28,35,27,7,20,16,25,25,19,15,3,14,12,3,13,18,30,6,14,0,15,-1,-7,-3,-4,-6,10,0,9,0,50,59,60,36,38,37,35,33,41,52,36,0,0,0,0,0,0,0,0,0,0,0,0,0,0,0]} 1. e4 {[%emt 0:10:02]} c6 {[%emt 0:18:16]} 2. Nf3 {[%emt 0:00:59]} d5 {[%emt 0:00:27]} 3. Nc3 {[%emt 0:00:07]} dxe4 {[%emt 0:00:15]} 4. Nxe4 {[%emt 0:00:15]} Nf6 {[%emt 0:00:30]} 5. Qe2 {[%emt 0:00:26]} Nxe4 {[%emt 0:00:22]} 6. Qxe4 {[%emt 0:00:07]} Be6 {[%emt 0:00:39] B11: Caro-Kann: Two Knights Variation.} 7. Qf4 {[%emt 0:17:51]} Qd6 {[%emt 0:07:43]} 8. d4 {[%emt 0:10:18]} Nd7 $146 {[%emt 0:07:55]} (8... Qxf4 9. Bxf4 Nd7 10. Be2 g6 11. O-O Bg7 12. c3 Bg4 13. h3 Bxf3 14. Bxf3 e6 {1-0 Bansal,A (2253)-Mede,I (2173) Sunnyvale 1000 IM Winter 12 2023 (5)}) 9. Bd3 {[%emt 0:03:51]} (9. h3 Qxf4 10. Bxf4 h6 11. Bg3) 9... Bd5 {[%emt 0:11:02]} 10. Ne5 {[%emt 0:10:37]} g6 {[%emt 0:08:59]} 11. O-O {[%emt 0:13:10]} Bg7 {[%emt 0:00:58]} 12. Re1 {[%emt 0:01:04][%cal Oe5g6]} Nxe5 {[%emt 0:03:37]} 13. dxe5 {[%emt 0:00:45] A sharp opening} Qc7 {[%emt 0:00:40]} 14. a4 {[%emt 0:05:39]} O-O {[%emt 0:02:13]} 15. Qg3 {[%emt 0:02:51]} c5 {[%emt 0:07:35][%cal Bc6c5,Bc5c4][%mdl 32]} 16. Bd2 {[%emt 0:03:58]} c4 {[%emt 0:06:40]} 17. Bf1 {[%emt 0:01:48]} Rfd8 {[%emt 0:01:28][%cal Od5g2] ...Bxg2! poses a challenge} 18. Bc3 {[%emt 0:04:04]} Be6 {[%emt 0:04:08]} 19. a5 {[%emt 0:02:49]} Qc6 {[%emt 0:06:31]} 20. Qe3 {[%emt 0:03:13]} Bf5 {[%emt 0:02:50]} (20... b5 $11) 21. g3 $14 {[%emt 0:11:16][%cal Oa5a6]} Be6 {[%emt 0:08:21]} 22. Bg2 {[%emt 0:01:26]} Bd5 {[%emt 0:01:38]} 23. Bxd5 {[%emt 0:02:07]} Rxd5 {[%emt 0:02:27]} 24. Rad1 {[%emt 0:00:23]} a6 {[%emt 0:01:46]} 25. Rxd5 {[%emt 0:00:26]} Qxd5 {[%emt 0:00:08]} 26. e6 {[%emt 0:00:30] Strongly threatening exf7+.} (26. Qe4 {simplifies} Rd8 27. Qxd5 Rxd5 28. Kg2) 26... f5 {[%emt 0:02:12] The position is equal.} 27. Bxg7 {[%emt 0:01:16]} Kxg7 $11 {[%emt 0:00:06][%mdl 4096] Endgame KQR-KQR} 28. Qa3 {[%emt 0:02:05]} Kf8 {[%emt 0:01:54]} 29. Qc3 {[%emt 0:00:01]} Kg8 {[%emt 0:00:14]} 30. Qb4 {[%emt 0:00:56]} Kf8 {[%emt 0:01:02]} 31. Qc3 {[%emt 0:00:23]} Kg8 {[%emt 0:00:06] Wards off Qh8+} 32. Qb4 {[%emt 0:01:01]} Kf8 {[%emt 0:00:40]} 33. Qc3 {[%emt 0:00:34] Weighted Error Value: White=0.06 (flawless) /Black=0.05 (flawless)   Mistake:       	---       	Black=1      Inaccurate:     	White=1     	---        OK:         	White=13    	Black=16} 1/2-1/2

[Event "4NCL Div 1 2024-25"]
[Site "England"]
[Date "2025.01.26"]
[Round "4.36"]
[White "Vijayakumar, Rishi"]
[Black "Pein, Malcolm"]
[Result "1/2-1/2"]
[Annotator "TA"]
[ECO "D45"]
[WhiteElo "2172"]
[BlackElo "2284"]
[PlyCount "80"]
[EventDate "2024.11.23"]
[EventType "team-tourn"]
[EventCountry "ENG"]
[SourceTitle "playchess.com"]
[Source "ChessBase"]
[SourceQuality "1"]
[TimeControl "40/6000+30:3000+30"]

{[%evp 15,80,-2,24,15,28,17,40,38,58,62,72,82,288,14,20,-39,-14,-28,-41,-26,0,-50,110,5,10,-64,-104,-275,-260,-266,-264,-257,-266,-262,-229,-465,-478,-627,-455,-633,-631,-612,-522,-508,-129,-100,0,0,43,52,37,37,33,18,34,8,45,13,16,0,87,0,46,0,77,0,31]} 1. d4 {[%emt 0:12:52]} d5 {[%emt 0:10:11]} 2. c4 {[%emt 0:01:03]} e6 {[%emt 0:00:10]} 3. Nc3 {[%emt 0:00:09]} Nf6 {[%emt 1:31:39]} 4. Nf3 {[%emt 0:00:18]} c6 {[%emt 0:00:00]} 5. e3 {[%emt 0:00:33]} Nbd7 {[%emt 0:00:00]} 6. Qc2 {[%emt 0:00:22]} Bd6 {[%emt 0:00:00]} 7. g4 {[%emt 0:00:53]} h6 {[%emt 0:00:00]} 8. Bd2 {[%emt 0:00:22] 8.g5 is a critical line.} Qe7 {[%emt 0:00:00]} 9. Rg1 {[%emt 0:01:43] D45: Semi-Slav: 5 e3.} e5 {[%emt 0:00:00]} 10. cxd5 {[%emt 0:11:07]} Nxd5 {[%emt 0:00:00]} 11. Ne4 {[%emt 0:04:55] White is slightly better.} exd4 {[%emt 0:00:00]} 12. Nxd6+ {[%emt 0:05:01]} Qxd6 {[%emt 0:00:00]} 13. Nxd4 $146 {[%emt 0:08:03] White sacrificed a pawn} (13. Qe4+ Ne7 14. Qxd4 Qxd4 15. Nxd4 Nf6 16. f3 g6 17. e4 Nd7 18. Bc3 O-O 19. Nf5 Nxf5 20. gxf5 {1-0 Ostrowski,L (2340)-Goldenberg,I AUS-ch op Melbourne 1993 (10)}) 13... Qxh2 $2 {[%emt 0:00:00]} (13... O-O $16) 14. Rg2 $2 {[%emt 0:00:18]} (14. Rg3 $1 $18) 14... Qe5 $11 {[%emt 0:00:00]} 15. f3 {[%emt 0:32:11]} (15. Be2 $11) 15... O-O $36 {[%emt 0:00:00][%mdl 2048] Black has some pressure.} (15... Nxe3 $2 16. Bxe3 Nf6 (16... Qxe3+ $2 17. Re2 $18) 17. Nxc6 $18) 16. Nf5 {[%emt 0:00:24]} N7f6 {[%emt 0:00:00] A dynamic duo of knights.} 17. O-O-O {[%emt 0:01:39][%cal Of5g7]} a5 {[%emt 0:00:00]} (17... Bxf5 18. Qxf5 Qd6 19. g5 $11) (17... h5 $5) 18. a3 {[%emt 0:06:08]} (18. Nxg7 $11 Kxg7 19. g5) 18... Be6 $2 {[%emt 0:00:00] [#]} (18... Bxf5 $6 19. Qxf5 Qd6 20. g5 Qc5+ 21. Qc2 (21. Kb1 $2 Nc3+ 22. Bxc3 Qxf5+ $19) 21... Qxc2+ 22. Kxc2 hxg5 23. Rxg5 $14 (23. e4 Nf4 $11)) (18... h5 $1 $15 {keeps the upper hand.}) 19. e4 {[%emt 0:21:59]} (19. Nxg7 $1 $16 Kxg7 20. g5) 19... Nb4 $1 $11 {[%emt 0:00:00]} 20. axb4 {[%emt 0:00:00]} (20. f4 $1 $11 Na2+ (20... Qxe4 21. axb4 axb4 22. Qxe4 $11) (20... Nxc2 $2 21. fxe5 Nxe4 22. Kxc2 $18) 21. Kb1 Qxe4 22. Re1 Qxc2+ 23. Kxc2) 20... axb4 $15 {[%emt 0:00:00]} 21. Be3 $2 {[%emt 0:00:00]} (21. Bxb4 $17 Ra1+ 22. Kd2 Rd8+ 23. Bd3 Rxd1+ 24. Kxd1 Bxf5 25. Rd2 (25. exf5 $2 Qe3 $19) (25. gxf5 Qb5 $17)) 21... Ra1+ $19 {[%emt 0:00:00]} 22. Kd2 {[%emt 0:00:00]} Rd8+ {[%emt 0:00:00]} 23. Nd4 {[%emt 0:00:00]} (23. Bd3 $2 b3 24. Rxa1 (24. Ne7+ $2 Kh7 $19) 24... bxc2 25. Kxc2 Rxd3 26. Kxd3 Qb5+ 27. Kc2 Qb3+ 28. Kc1 Bxf5 $19) 23... Rxd1+ {[%emt 0:00:00]} 24. Kxd1 {[%emt 0:00:00] And now Rd2 would win.} c5 $1 {[%emt 0:00:00]} (24... Rxd4+ 25. Bxd4 Qxd4+ 26. Qd2 $11) 25. Rd2 {[%emt 0:00:00]} (25. Qd2) 25... cxd4 {[%emt 0:00:00]} 26. Qd3 {[%emt 0:00:00]} Ra8 {[%emt 0:00:32]} 27. Bxd4 {[%emt 0:00:00]} Ra1+ {[%emt 0:00:18]} 28. Ke2 {[%emt 0:00:00]} Qh2+ {[%emt 0:00:29]} 29. Bf2 {[%emt 0:00:43] [#]} Nxg4 {[%emt 0:03:02]} 30. fxg4 $17 {[%emt 0:00:44]} Bxg4+ {[%emt 0:03:07]} ({Better is} 30... h5 $17 {Hoping for ...Qh1.} 31. Bh3 Rh1 (31... Bxg4+ 32. Bxg4 hxg4 33. Qd8+ Kh7 34. Qg5 $16) (31... hxg4 32. Qd8+ Kh7 33. Qh4+ Kg6 34. Rd5 $11) 32. Qd8+ Kh7) 31. Ke3 $11 {[%emt 0:00:01]} Qh1 {[%emt 0:01:44]} 32. Be2 {[%emt 0:00:29] Really sharp!} Bxe2 {[%emt 0:02:33]} 33. Qxe2 {[%emt 0:00:02]} Ra8 {[%emt 0:01:46]} 34. Qg4 {[%emt 0:04:36]} Qc1 {[%emt 0:01:03]} (34... Re8 {is interesting.} 35. Qf5 Qc1 36. Ke2 b5) 35. Qd7 {[%emt 0:00:37] Prevents Rd8.} Qc5+ {[%emt 0:00:11]} (35... Rc8 $5) 36. Ke2 {[%emt 0:00:44]} Qh5+ {[%emt 0:00:57]} 37. Ke3 {[%emt 0:00:01][%cal Od7f5]} Qg5+ {[%emt 0:00:44]} (37... Qc5+ $1 $11 38. Kd3 Qc1) 38. Ke2 {[%emt 0:00:01][%cal Od7f5]} Qh5+ {[%emt 0:00:16]} 39. Ke3 {[%emt 0:00:02]} Qg5+ {[%emt 0:00:34]} 40. Ke2 {[%emt 0:00:02]} (40. Kf3 $16) 40... Qh5+ {[%emt 0:00:28] Never resign too early!   Weighted Error Value: White=0.65/Black=0.48  Loses game:     	White=1     	Black=1      Missed win:     	White=1     	---        Mistake:       	White=6     	Black=3      Inaccurate:     	White=5     	Black=3      OK:         	White=7     	Black=7      Best:        	White=4     	Black=6      Strong:       	---       	Black=2} 1/2-1/2